bitfinex-derivatives/quotes_SOLF0:USTF0_20260310
["timestamp","ask_amount","ask_price","bid_price","bid_amount"]
[1773173301501,3.44613864,86.09,86.061,10.457]
[1773173303808,3.9724568,86.099,86.074,10.455]
[1773173304405,3.9724568,86.099,86.066,10.456]
[1773173304606,3.44613864,86.09,86.066,10.456]
[1773173304905,3.9724568,86.099,86.066,10.456]
[1773173305302,3.9724568,86.099,86.072,10.455]
[1773173306710,3.9724568,86.099,86.064,10.456]
[1773173306911,3.44613864,86.09,86.064,10.456]
[1773173307713,3.44613864,86.09,86.055,10.457]
[1773173307914,3.44613864,86.09,86.053,3.74913466]
[1773173308114,3.9724568,86.099,86.053,3.74913466]
[1773173308314,3.9724568,86.099,86.067,10.456]
[1773173310617,3.9724568,86.099,86.06,10.457]
[1773173316011,3.9724568,86.099,86.066,10.456]
[1773173316816,3.45395883,86.11,86.075,3.74913466]
[1773173317023,3.9724568,86.119,86.075,3.74913466]
[1773173317616,3.9724568,86.109,86.062,3.74913466]
[1773173317919,10.78394712,86.132,86.041,3.74913466]
[1773173317920,3.9724568,86.099,86.041,3.74913466]
[1773173318522,3.9724568,86.099,86.058,3.74913466]
[1773173319119,3.9724568,86.099,86.071,10.455]
[1773173319313,7.42641563,86.11,86.071,10.455]
[1773173320514,3.9724568,86.109,86.071,10.455]
[1773173322421,3.9724568,86.109,86.008,21.53000632]
[1773173322422,3.45395883,86.12,86.075,3.74913466]
[1773173322622,3.9724568,86.124,86.081,3.74913466]
[1773173322820,3.45395883,86.12,86.081,3.74913466]
[1773173323022,3.45395883,86.11,86.081,3.74913466]
[1773173323219,3.45395883,86.11,86.06,3.45395883]
[1773173323220,3.45395883,86.11,86.074,10.455]
[1773173328026,3.45395883,86.11,86.074,14.46712822]
[1773173328223,3.45395883,86.11,86.076,10.455]
[1773173328425,3.87489927,86.137,86.08,3.45395883]
[1773173328621,3.45395883,86.13,86.081,4.01212822]
[1773173328826,3.87489927,86.137,86.081,4.01212822]
[1773173329030,3.45395883,86.13,86.081,4.01212822]
[1773173329430,3.45395883,86.13,86.091,10.453]
[1773173330127,3.45395883,86.11,86.084,10.454]
[1773173330633,3.75475144,86.119,86.084,10.454]
[1773173331331,3.75475144,86.119,86.081,4.01212822]
[1773173331830,3.75475144,86.119,86.082,14.47032643]
[1773173332031,10.45,86.115,86.082,4.01632643]
[1773173332832,10.45,86.115,86.061,4.01632643]
[1773173333134,3.45395883,86.1,86.059,4.01632643]
[1773173333531,7.20871027,86.09,86.045,4.01632643]
[1773173334236,3.45395883,86.11,86.061,4.01632643]
[1773173335433,10.451,86.107,86.064,10.456]
[1773173335732,10.451,86.107,86.065,4.01632643]
[1773173336323,10.451,86.107,86.067,10.456]
[1773173338933,3.75475144,86.089,86.041,4.01632643]
[1773173339130,3.45395883,86.08,86.041,4.01632643]
[1773173340429,3.45395883,86.05,86.008,4.01632643]
[1773173340829,7.20871027,86.05,86.008,4.01632643]
[1773173341431,3.45395883,86.04,86.008,4.01632643]
[1773173341831,3.45395883,86.04,85.96,21.53000632]
[1773173341832,3.45395883,86.04,85.993,4.01632643]
[1773173342026,3.45395883,86.02,85.993,4.01632643]
[1773173342537,3.75475144,86.039,85.993,4.01632643]
[1773173342538,3.45395883,86.03,85.993,4.01632643]
[1773173344326,3.75475144,86.029,85.981,10.466]
[1773173344534,3.45395883,86.02,85.98,4.01632643]
[1773173344836,3.75475144,86.016,85.967,4.01632643]
[1773173345026,3.45395883,86.01,85.967,4.01632643]
[1773173345437,3.45395883,86.02,85.967,4.01632643]
[1773173345836,3.45395883,86.02,85.97,3.45395883]
[1773173346028,3.45395883,86.02,85.967,4.01632643]
[1773173346029,3.45395883,86.03,85.983,4.01632643]
[1773173347335,3.45395883,86.03,85.99,10.465]
[1773173348540,3.45395883,86.03,85.99,14.48132643]
[1773173348736,3.45395883,86.03,85.991,4.01632643]
[1773173348934,3.75475144,86.045,85.947,20.941]
[1773173348935,3.45395883,86.04,85.995,4.01632643]
[1773173349736,3.45395883,86.03,85.995,4.01632643]
[1773173352335,3.45395883,86.02,85.992,10.465]
[1773173353132,3.45395883,86.03,85.992,10.465]
[1773173354537,3.45395883,86.01,85.961,4.01632643]
[1773173355439,3.45395883,86.01,85.968,10.468]
[1773173356044,3.45395883,86.01,85.975,10.467]
[1773173358041,3.75475144,85.999,85.967,10.468]
[1773173358646,3.75475144,85.999,85.957,10.469]
[1773173358852,3.45395883,85.99,85.957,10.469]
[1773173359046,3.45395883,85.98,85.948,4.01632643]
[1773173359445,3.45395883,85.98,85.955,10.469]
[1773173359946,3.45395883,86.0,85.961,3.74375763]
[1773173360152,3.45395883,86.01,85.961,3.74375763]
[1773173360649,3.45395883,86.02,85.981,3.74375763]
[1773173361442,3.45395883,86.02,85.983,10.466]
[1773173361949,3.45395883,86.01,85.976,10.467]
[1773173362648,3.45395883,86.01,85.974,3.74375763]
[1773173364345,3.91416414,86.009,85.958,3.74375763]
[1773173364854,3.45395883,86.0,85.958,3.74375763]
[1773173365443,3.45395883,86.0,85.966,10.468]
[1773173365750,3.45395883,85.99,85.944,3.74375763]
[1773173365954,3.45395883,85.98,85.944,3.74375763]
[1773173366354,3.45395883,85.99,85.944,3.74375763]
[1773173367453,3.45395883,86.0,85.959,3.74375763]
[1773173367849,3.45395883,86.0,85.972,10.467]
[1773173368046,3.45395883,86.0,85.959,3.74375763]
[1773173369356,3.45395883,86.0,85.965,10.468]
[1773173371453,3.45395883,86.01,85.973,3.74375763]
[1773173371656,3.45395883,86.02,85.973,3.74375763]
[1773173371858,3.91416414,86.026,85.973,3.74375763]
[1773173372056,3.45395883,86.02,85.981,10.466]
[1773173375559,3.46034894,86.02,85.981,10.466]
[1773173376956,3.46034894,86.03,85.994,3.74375763]
[1773173377560,3.46034894,86.02,85.981,3.74375763]
[1773173378955,3.91416414,86.018,85.972,14.21075763]
[1773173379962,3.46034894,86.01,85.972,14.21075763]
[1773173380862,3.91416414,86.018,85.976,10.467]
[1773173381057,3.46034894,86.02,85.977,3.74375763]
[1773173381257,10.461,86.027,85.977,3.74375763]
[1773173382354,10.461,86.027,85.98,3.74375763]
[1773173383359,8.55750555,86.028,85.988,10.465]
[1773173383658,8.55750555,86.027,85.988,10.465]
[1773173383859,8.55750555,86.029,85.988,10.465]
[1773173384058,8.55750555,86.028,85.989,3.74375763]
[1773173384258,3.46034894,86.03,85.989,3.74375763]
[1773173384259,8.55750555,86.027,85.989,3.74375763]
[1773173384459,3.46034894,86.03,85.991,3.74375763]
[1773173384659,3.46034894,86.04,85.991,3.74375763]
[1773173384854,8.6443291,86.039,85.991,3.74375763]
[1773173385060,8.6443291,86.038,85.991,3.74375763]
[1773173385256,8.6443291,86.037,85.991,3.74375763]
[1773173385456,10.459,86.039,85.998,10.464]
[1773173385656,8.64644394,86.038,85.991,3.74375763]
[1773173385958,10.462,86.019,85.977,10.467]
[1773173386164,10.462,86.019,85.978,3.74375763]
[1773173391868,10.462,86.019,85.979,10.467]
[1773173392567,3.46034894,86.02,85.982,3.89555046]
[1773173392772,3.91416414,86.029,85.982,3.89555046]
[1773173393065,8.65279574,86.028,85.99,3.89555046]
[1773173393267,8.65395063,86.027,85.99,3.89555046]
[1773173393474,3.91416414,86.029,85.99,3.89555046]
[1773173394972,8.65440415,86.028,85.99,3.89555046]
[1773173395170,3.91416414,86.029,85.99,3.89555046]
[1773173395375,8.6548416,86.028,85.99,3.89555046]
[1773173395570,8.6548416,86.027,85.99,3.89555046]
[1773173395769,3.91416414,86.029,85.99,3.89555046]
[1773173396066,8.65488511,86.028,85.99,3.89555046]
[1773173396370,3.91416414,86.029,85.99,3.89555046]
[1773173396667,8.65537307,86.028,85.99,3.89555046]
[1773173396874,3.91416414,86.029,85.99,3.89555046]
[1773173397172,8.65537307,86.028,85.99,3.89555046]
[1773173397368,3.91416414,86.029,85.99,3.89555046]
[1773173397568,8.65572608,86.028,85.99,3.89555046]
[1773173397871,3.91416414,86.029,85.99,3.89555046]
[1773173398074,8.65952693,86.034,85.994,3.89555046]
[1773173398266,10.461,86.023,85.994,3.89555046]
[1773173398471,3.46034894,86.02,85.961,3.89555046]
[1773173399364,10.462,86.019,85.98,10.466]
[1773173400373,3.46034894,86.02,85.98,10.466]
[1773173400666,3.98928707,86.019,85.978,3.89555046]
[1773173400872,3.98928707,86.019,85.947,21.53000632]
[1773173400873,3.46034894,86.01,85.965,3.89555046]
[1773173401571,3.98928707,86.014,85.975,10.467]
[1773173401773,8.66153797,86.019,85.976,3.89555046]
[1773173401973,3.46034894,86.02,85.976,3.89555046]
[1773173402168,8.66181929,86.019,85.976,3.89555046]
[1773173402364,3.46034894,86.02,85.976,3.89555046]
[1773173403475,3.46034894,86.02,85.978,3.89555046]
[1773173404176,8.66313872,86.019,85.978,3.89555046]
[1773173404377,8.66313872,86.018,85.979,14.36255046]
[1773173404574,3.46034894,86.03,85.98,3.89555046]
[1773173404876,8.66418646,86.029,85.981,3.89555046]
[1773173405072,3.98928707,86.064,86.011,3.89555046]
[1773173405268,3.98928707,86.064,86.021,3.89555046]
[1773173405667,3.46034894,86.06,86.021,3.89555046]
[1773173406474,3.98928707,86.064,86.021,3.89555046]
[1773173407379,3.98928707,86.064,86.023,10.461]
[1773173407677,3.98928707,86.064,86.024,3.89555046]
[1773173410378,10.456,86.069,86.027,3.89555046]
[1773173411381,10.456,86.069,86.028,10.461]
[1773173412676,10.456,86.069,85.848,90.96334413]
[1773173412677,3.98928707,86.089,86.031,3.89555046]
[1773173413977,3.98928707,86.075,86.031,3.89555046]
[1773173415181,3.46034894,86.07,86.031,3.89555046]
[1773173415384,3.98928707,86.075,86.032,10.46]
[1773173415585,3.46034894,86.07,86.032,10.46]
[1773173416083,3.98928707,86.059,86.024,10.461]
[1773173417890,3.98928707,86.059,86.007,3.89555046]
[1773173418087,3.98928707,86.049,86.007,3.89555046]
[1773173418395,3.98928707,86.049,86.016,10.462]
[1773173418780,3.98928707,86.049,86.009,10.463]
[1773173418981,3.46034894,86.04,86.009,10.463]
[1773173420286,3.98928707,86.049,86.009,10.463]
[1773173420482,3.85071985,86.039,86.0,10.464]
[1773173420683,3.85071985,86.039,85.98,3.46034894]
[1773173420684,3.85071985,86.019,85.98,4.00055628]
[1773173421292,3.85071985,86.019,85.981,10.466]
[1773173422291,3.85071985,86.019,85.98,4.00055628]
[1773173422693,3.85071985,86.019,85.98,14.46755628]
[1773173423395,3.46034894,86.01,85.971,10.468]
[1773173423802,3.46034894,86.01,85.967,4.00055628]
[1773173424203,3.46034894,86.01,85.903,28.94278397]
[1773173424204,10.798701,86.053,86.013,4.00055628]
[1773173424405,3.85071985,86.063,86.013,4.00055628]
[1773173424700,3.46034894,86.07,86.013,4.00055628]
[1773173425402,3.46034894,86.07,86.023,10.461]
[1773173425604,3.46034894,86.06,86.013,4.00055628]
[1773173426503,3.46034894,86.06,86.014,10.462]
[1773173427795,3.46034894,86.06,86.014,12.52219979]
[1773173429207,3.46034894,86.06,86.019,10.462]
[1773173431106,7.31106879,86.06,86.019,10.462]
[1773173435500,3.46034894,86.05,86.011,10.463]
[1773173436108,3.85071985,86.059,86.011,10.463]
[1773173436413,3.46034894,86.05,86.011,10.463]
[1773173437712,3.45759805,86.05,86.011,10.463]
[1773173438308,3.85071985,86.039,86.004,10.464]
[1773173438504,3.85071985,86.039,85.991,2.19704446]
[1773173438505,3.45759805,86.02,85.991,2.19704446]
[1773173438818,3.45759805,86.0,85.958,2.19704446]
[1773173439002,3.45759805,85.99,85.941,2.19704446]
[1773173439407,3.45759805,85.97,85.927,2.19704446]
[1773173440508,3.45759805,85.96,85.927,12.67004446]
[1773173440709,3.45759805,85.97,85.927,12.67004446]
[1773173441612,3.85071985,85.979,85.927,12.67004446]
[1773173442006,3.85071985,85.989,85.936,2.247057]
[1773173443115,3.85071985,85.986,85.936,2.247057]
[1773173444411,3.85071985,85.986,85.891,2.02469193]
[1773173444412,3.85071985,85.986,85.937,12.72807722]
[1773173447417,3.81815543,85.981,85.926,10.473]
[1773173447810,3.81815543,85.981,85.927,2.14410575]
[1773173448815,3.81815543,85.976,85.927,2.14410575]
[1773173450312,9.28013227,85.99,85.927,2.14410575]
[1773173450313,3.95937722,85.974,85.928,10.473]
[1773173450912,3.95937722,85.972,85.919,10.474]
[1773173451918,3.95937722,85.97,85.923,10.473]
[1773173452412,3.95937722,85.983,85.93,2.12228017]
[1773173453417,3.95937722,85.983,85.941,10.471]
[1773173455619,3.95937722,85.983,85.933,12.59827404]
[1773173457419,3.95937722,85.982,85.933,12.59827404]
[1773173459820,3.95937722,85.98,85.933,12.59827404]
[1773173460722,3.95937722,85.98,85.939,10.471]
[1773173461619,3.95937722,85.974,85.921,2.06676865]
[1773173463414,3.95937722,85.974,85.881,2.02482741]
[1773173463415,3.95937722,85.987,85.94,10.471]
[1773173463723,3.46362601,85.98,85.94,10.471]
[1773173464125,3.46362601,85.97,85.94,10.471]
[1773173465123,3.46362601,85.98,85.94,10.471]
[1773173466926,3.46362601,85.97,85.935,2.06676865]
[1773173467724,3.46362601,85.97,85.938,10.472]
[1773173467922,3.95937722,85.979,85.935,2.06676865]
[1773173469428,3.95937722,85.979,85.944,10.471]
[1773173470328,3.46362601,85.97,85.944,10.471]
[1773173474734,3.95937722,85.979,85.944,10.471]
[1773173476736,3.46362601,85.99,85.946,1.93989795]
[1773173478128,3.95937722,86.009,85.963,1.94644364]
[1773173479434,3.46362601,86.0,85.975,10.467]
[1773173481636,3.94044663,85.999,85.968,10.468]
[1773173482934,3.46362601,86.0,85.968,10.468]
[1773173483135,3.46362601,86.0,85.972,10.467]
[1773173486741,3.46362601,86.02,85.98,2.06532517]
[1773173486937,8.59430714,86.019,85.98,2.06532517]
[1773173487132,8.59430714,86.018,85.98,2.06532517]
[1773173487337,3.46362601,86.02,85.98,2.06532517]
[1773173487535,8.59034459,86.019,85.98,2.06532517]
[1773173487836,8.59034459,86.018,85.98,2.06532517]
[1773173488140,3.46362601,86.02,85.98,2.06532517]
[1773173488333,8.58160661,86.019,85.988,10.466]
[1773173488641,3.46362601,86.02,85.988,10.466]
[1773173488939,8.58160615,86.019,85.988,10.466]
[1773173489140,3.46362601,86.02,85.988,10.466]
[1773173489735,12.04269626,86.02,85.988,10.466]
[1773173489935,8.57907025,86.023,85.994,2.0790103]
[1773173490137,3.46362601,86.02,85.994,2.0790103]
[1773173493038,7.40407264,86.03,85.994,2.0790103]
[1773173493244,3.46362601,86.02,85.994,2.0790103]
[1773173495048,3.46362601,86.03,85.995,2.06560266]
[1773173495251,3.46362601,86.01,85.961,2.06560266]
[1773173495448,3.46362601,86.0,85.961,2.06560266]
[1773173496447,3.46362601,86.0,85.972,10.467]
[1773173498145,3.94044663,86.009,85.972,10.467]
[1773173498350,3.46362601,85.99,85.961,2.06560266]
[1773173498544,7.40407264,85.99,85.955,10.469]
[1773173499551,3.46231934,86.0,85.961,2.08498849]
[1773173501452,3.46231934,86.0,85.967,10.468]
[1773173503355,3.46231934,85.99,85.941,2.0988443]
[1773173504450,3.46231934,85.99,85.954,10.47]
[1773173506551,3.94044663,85.999,85.96,10.469]
[1773173506955,3.94044663,85.999,85.96,12.57239824]
[1773173508454,3.82594152,85.997,85.96,12.57239824]
[1773173515561,3.71051402,85.989,85.955,2.13950397]
[1773173516158,3.71051402,85.989,85.956,10.469]
[1773173516358,3.71051402,85.989,85.956,12.60850397]
[1773173516661,3.71051402,85.989,85.957,2.13950397]
[1773173516856,3.46231934,85.97,85.917,2.157584]
[1773173517057,3.71051402,85.979,85.931,2.157584]
[1773173517455,12.28958427,85.989,85.931,2.157584]
[1773173517860,3.71051402,85.988,85.931,2.157584]
[1773173518364,10.466,85.986,85.948,10.47]
[1773173519054,3.46231934,85.98,85.948,10.47]
[1773173519256,3.46231934,85.99,85.951,2.15427486]
[1773173520462,8.5905008,86.015,85.961,2.15427486]
[1773173520658,3.71051402,86.019,85.971,2.15427486]
[1773173520863,3.71051402,86.018,85.971,2.15427486]
[1773173522464,3.71051402,86.018,85.981,2.15526913]
[1773173522966,3.71051402,86.032,85.991,2.16816453]
[1773173523768,3.71051402,86.032,85.997,10.464]
[1773173524467,3.71051402,86.044,86.002,2.16816453]
[1773173524667,8.58852926,86.043,86.002,2.16816453]
[1773173524863,3.71051402,86.044,86.002,2.16816453]
[1773173524864,8.58852926,86.042,86.002,2.16816453]
[1773173525057,3.71051402,86.042,86.002,2.16816453]
[1773173525568,3.71051402,86.042,86.005,10.463]
[1773173526764,3.46231934,86.04,86.005,10.463]
[1773173528161,3.71051402,86.039,86.002,2.16816453]
[1773173528366,3.71051402,86.039,85.996,10.464]
[1773173529073,3.71051402,86.035,85.991,2.20432465]
[1773173529273,3.71051402,86.029,85.991,2.20432465]
[1773173530371,3.71051402,86.028,85.991,2.20432465]
[1773173530971,3.71051402,86.028,85.994,10.465]
[1773173533874,3.46231934,86.04,86.001,10.464]
[1773173534079,7.17283336,86.04,86.001,10.464]
[1773173534279,3.71051402,86.039,86.001,10.464]
[1773173534878,3.71051402,86.039,86.007,10.463]
[1773173551091,7.20292635,86.03,85.993,2.35259628]
[1773173551292,3.74060701,86.029,85.993,2.35259628]
[1773173552496,3.74060701,86.029,85.995,10.465]
[1773173552995,3.74060701,86.029,85.995,12.71193672]
[1773173553192,3.74060701,86.029,85.996,2.24693672]
[1773173553492,13.92131934,86.04,86.001,2.24693672]
[1773173553694,17.66192635,86.04,86.001,2.24693672]
[1773173554394,17.66192635,86.04,86.003,10.464]
[1773173555194,3.46231934,86.02,85.972,2.22799804]
[1773173555497,3.74060701,86.029,85.981,2.22799804]
[1773173555702,3.74060701,86.04,85.991,2.22799804]
[1773173555991,3.74060701,86.04,86.001,2.22799804]
[1773173557397,3.74060701,86.04,86.003,10.464]
[1773173560599,7.20292635,86.04,86.003,10.464]
[1773173561599,7.19893419,86.04,86.003,10.464]
[1773173562004,3.74060701,86.039,86.001,2.22799804]
[1773173563204,10.459,86.038,86.002,2.0815201]
[1773173563699,3.74060701,86.039,86.002,2.0815201]
[1773173564097,3.74060701,86.039,86.005,10.463]
[1773173565705,3.74060701,86.061,86.011,2.08549902]
[1773173565902,20.906,86.094,86.011,2.08549902]
[1773173565903,3.74060701,86.059,86.011,2.08549902]
[1773173566098,3.45832718,86.05,86.011,2.08549902]
[1773173566302,8.64593677,86.049,86.011,2.08549902]
[1773173566502,8.64593677,86.048,86.011,2.08549902]
[1773173566708,8.64593677,86.047,86.011,2.08549902]
[1773173566901,8.64593677,86.046,86.011,2.08549902]
[1773173567102,3.92210725,86.049,86.011,2.08549902]
[1773173567407,3.92210725,86.047,86.013,10.462]
[1773173567598,8.65237587,86.046,86.013,10.462]
[1773173567804,8.65237587,86.045,86.013,10.462]
[1773173568004,8.65237587,86.044,86.013,10.462]
[1773173568205,8.65237587,86.043,86.013,10.462]
[1773173568509,8.65237587,86.042,86.013,10.462]
[1773173568710,8.65237587,86.041,86.013,10.462]
[1773173569003,3.92210725,86.047,86.013,10.462]
[1773173569205,3.92210725,86.045,86.011,2.08549902]
[1773173569412,8.65221649,86.044,86.011,2.08549902]
[1773173569709,8.65221649,86.043,86.011,2.08549902]
[1773173569909,8.65221649,86.042,86.011,2.08549902]
[1773173570111,8.65221649,86.041,86.011,2.08549902]
[1773173570311,3.92210725,86.045,86.011,2.08549902]
[1773173570611,8.65206405,86.044,86.011,2.08549902]
[1773173570810,8.65206405,86.043,86.011,2.08549902]
[1773173571107,8.65206405,86.042,86.011,2.08549902]
[1773173571307,3.92210725,86.045,86.011,2.08549902]
[1773173571509,8.65200928,86.044,86.011,2.08549902]
[1773173571708,8.65200928,86.043,86.011,2.08549902]
[1773173571910,8.65200928,86.042,86.011,2.08549902]
[1773173572111,3.92210725,86.045,86.011,2.08549902]
[1773173572311,8.65183336,86.044,86.011,2.08549902]
[1773173572612,8.65183336,86.043,86.011,2.08549902]
[1773173572813,8.65183336,86.042,86.011,2.08549902]
[1773173573009,3.92210725,86.045,86.012,10.463]
[1773173573310,8.65180197,86.044,86.013,2.17043652]
[1773173573511,8.65180197,86.043,86.013,2.17043652]
[1773173573804,8.65180197,86.042,86.013,2.17043652]
[1773173574010,3.45832718,86.05,86.013,2.17043652]
[1773173574210,8.65160218,86.049,86.013,2.17043652]
[1773173574411,8.65160218,86.048,86.015,10.462]
[1773173574605,8.65160218,86.047,86.015,10.462]
[1773173574803,8.65160218,86.046,86.015,10.462]
[1773173575107,8.65160218,86.045,86.015,10.462]
[1773173575410,8.65160218,86.044,86.015,10.462]
[1773173575611,8.65160218,86.043,86.015,10.462]
[1773173575812,8.65160218,86.042,86.015,10.462]
[1773173576011,4.00537493,86.049,86.015,10.462]
[1773173576211,12.65741549,86.048,86.015,10.462]
[1773173576408,4.00537493,86.029,85.987,2.16751969]
[1773173576614,4.00537493,86.019,85.975,2.16751969]
[1773173576812,4.00537493,86.017,85.975,2.16751969]
[1773173577009,8.65204056,86.016,85.975,2.16751969]
[1773173577210,8.65204056,86.015,85.975,2.16751969]
[1773173577406,4.00537493,86.017,85.975,2.16751969]
[1773173577407,8.65204056,86.014,85.975,2.16751969]
[1773173577606,8.65204056,86.013,85.975,2.16751969]
[1773173577809,3.45832718,86.01,85.975,2.16751969]
[1773173578215,8.89703709,86.009,85.975,2.16751969]
[1773173578416,8.89726448,86.008,85.976,10.467]
[1773173578613,4.00537493,86.017,85.976,2.15249921]
[1773173578812,8.89643172,86.016,85.976,2.15249921]
[1773173579008,8.89643172,86.015,85.976,2.15249921]
[1773173579313,8.89643172,86.014,85.982,10.466]
[1773173579518,4.00537493,86.017,85.982,10.466]
[1773173579711,8.8947125,86.016,85.982,10.466]
[1773173579912,8.8947125,86.015,85.982,10.466]
[1773173580214,8.8947125,86.014,85.982,10.466]
[1773173580415,4.00537493,86.017,85.982,10.466]
[1773173580619,8.89444817,86.016,85.982,10.466]
[1773173580817,8.89444817,86.015,85.982,12.64381293]
[1773173581027,3.45832718,86.04,85.991,2.17781293]
[1773173581215,12.89811603,86.039,85.991,2.17781293]
[1773173581416,8.8927411,86.038,85.991,2.17781293]
[1773173581615,8.8927411,86.037,85.991,2.17781293]
[1773173581817,8.8927411,86.036,85.991,2.17781293]
[1773173582019,8.8927411,86.035,86.0,10.464]
[1773173582322,8.8927411,86.034,86.0,10.464]
[1773173582518,8.8927411,86.033,86.0,10.464]
[1773173582719,8.8927411,86.032,86.0,10.464]
[1773173582921,8.8927411,86.031,86.0,10.464]
[1773173583120,8.8927411,86.03,86.0,10.464]
[1773173583321,8.8927411,86.029,86.0,10.464]
[1773173583620,4.00537493,86.039,86.0,10.464]
[1773173583820,12.89694282,86.038,86.0,10.464]
[1773173584020,12.89694282,86.037,86.0,10.464]
[1773173584225,4.00537493,86.035,86.0,10.464]
[1773173584423,12.89694282,86.034,86.0,10.464]
[1773173584722,8.89156789,86.033,86.0,10.464]
[1773173584921,8.89156789,86.032,86.0,10.464]
[1773173585118,8.89156789,86.031,86.0,10.464]
[1773173585318,4.00537493,86.029,85.971,2.21881386]
[1773173585519,4.00537493,86.027,85.971,2.21881386]
[1773173585714,4.00537493,86.025,85.971,2.21881386]
[1773173585916,4.00537493,86.023,85.971,2.21881386]
[1773173586116,7.46370211,85.99,85.952,2.21881386]
[1773173586318,3.45832718,85.97,85.931,2.21881386]
[1773173586825,3.45832718,85.97,85.939,10.471]
[1773173590726,3.45832718,85.97,85.931,2.21881386]
[1773173592330,3.45832718,85.97,85.934,10.472]
[1773173594129,3.45832718,85.97,85.941,10.471]
[1773173596934,4.00537493,85.969,85.941,10.471]
[1773173597634,3.45832718,85.96,85.933,10.472]
[1773173597835,3.45832718,85.95,85.902,2.20075815]
[1773173598026,19.62193404,86.014,85.91,3.45832718]
[1773173598027,4.00537493,85.972,85.91,3.45832718]
[1773173598230,4.00537493,85.969,85.911,2.20075815]
[1773173598431,4.00537493,85.969,85.91,3.45832718]
[1773173598432,4.00537493,85.969,85.928,10.473]
[1773173598627,3.45832718,85.96,85.928,10.473]
[1773173599131,3.45832718,85.96,85.934,10.472]
[1773173599333,4.00537493,85.969,85.934,10.472]
[1773173602935,3.45832718,85.96,85.934,10.472]
[1773173603126,3.45832718,85.96,85.927,10.473]
[1773173607142,3.45832718,85.96,85.933,10.472]
[1773173607641,3.45832718,85.96,85.86,34.89]
[1773173607642,3.45832718,85.97,85.934,2.28270221]
[1773173607846,4.05462924,85.978,85.939,2.28270221]
[1773173609150,3.45832718,85.95,85.911,2.28291381]
[1773173610450,3.45832718,85.95,85.928,10.473]
[1773173612052,3.45832718,85.96,85.933,10.472]
[1773173615453,3.45832718,85.97,85.933,10.472]
[1773173615654,3.45832718,85.97,85.938,10.472]
[1773173615854,4.05462924,85.969,85.921,2.28145146]
[1773173617457,4.05462924,85.969,85.93,10.473]
[1773173622055,3.45832718,85.96,85.93,10.473]
[1773173623659,3.46483294,85.96,85.93,10.473]
[1773173627165,3.46483294,85.96,85.874,21.72859815]
[1773173627166,4.03428266,85.959,85.884,2.3111534]
[1773173627373,3.46483294,85.93,85.884,2.3111534]
[1773173627564,3.46483294,85.95,85.901,2.3111534]
[1773173627862,4.03428266,85.958,85.923,12.78417054]
[1773173628065,4.03428266,85.958,85.924,2.31117054]
[1773173628465,3.46483294,85.96,85.926,2.31117054]
[1773173628768,12.22920247,85.97,85.926,2.31117054]
[1773173629062,8.76436953,85.969,85.926,2.31117054]
[1773173629266,8.76436953,85.968,85.926,2.31117054]
[1773173629460,12.70391478,85.967,85.932,10.472]
[1773173629662,8.76436953,85.966,85.932,10.472]
[1773173629864,8.76436953,85.965,85.932,10.472]
[1773173630163,8.76436953,85.964,85.932,10.472]
[1773173630369,3.46483294,85.96,85.932,10.472]
[1773173630569,8.76436953,85.959,85.932,10.472]
[1773173630770,8.76436953,85.958,85.932,10.472]
[1773173630970,8.76436953,85.957,85.932,10.472]
[1773173631172,8.76436953,85.956,85.932,10.472]
[1773173631465,8.76436953,85.955,85.932,10.472]
[1773173631771,8.76436953,85.954,85.932,10.472]
[1773173631970,3.46483294,85.96,85.932,10.472]
[1773173632169,8.79380479,85.959,85.932,10.472]
[1773173632371,8.79380479,85.958,85.932,10.472]
[1773173632571,3.46483294,85.96,85.932,10.472]
[1773173632771,8.79469408,85.959,85.932,10.472]
[1773173632971,8.79469408,85.958,85.932,10.472]
[1773173633272,3.46483294,85.96,85.932,10.472]
[1773173633475,3.93954525,85.967,85.932,10.472]
[1773173633669,8.79605831,85.966,85.932,10.472]
[1773173633867,8.79605831,85.965,85.938,2.12638548]
[1773173634071,3.46483294,85.98,85.938,2.12638548]
[1773173634274,8.79736563,85.979,85.938,2.12638548]
[1773173634473,8.79736563,85.978,85.938,2.12638548]
[1773173634675,8.79736563,85.977,85.938,2.12638548]
[1773173634866,8.79736563,85.976,85.938,2.12638548]
[1773173635075,8.79736563,85.975,85.938,2.12638548]
[1773173635275,8.79736563,85.974,85.938,2.12638548]
[1773173635472,8.79736563,85.973,85.948,10.47]